bitfinex-derivatives/quotes_SOLF0:USTF0_20251107
["timestamp","ask_amount","ask_price","bid_price","bid_amount"]
[1762538713643,0.76,161.24,161.11,3.0]
[1762538713847,0.76,161.22,161.11,3.0]
[1762538714048,0.80239606,161.19,161.16,0.04068699]
[1762538714248,0.04239606,161.19,161.16,0.04068699]
[1762538714645,0.80239606,161.19,161.16,0.04068699]
[1762538714850,6.3476,161.17,161.07,3.0]
[1762538715046,4.96716972,161.16,161.07,3.0]
[1762538715254,0.76,161.21,161.1,8.5897]
[1762538715455,11.31553979,161.2,161.1,8.5897]
[1762538715751,0.76,161.16,161.13,0.04234952]
[1762538716059,4.96964248,161.15,161.13,0.04234952]
[1762538716256,4.96996727,161.14,161.13,0.04234952]
[1762538716562,0.76,161.13,161.02,3.0]
[1762538716855,0.76,161.11,161.02,3.0]
[1762538717059,4.96996727,161.1,161.03,5.5921]
[1762538717254,0.76,161.11,161.02,3.0]
[1762538717453,4.96879856,161.1,161.02,3.0]
[1762538717755,0.04286238,161.08,161.04,0.04298703]
[1762538717959,0.04519954,161.08,161.04,0.04640528]
[1762538718156,4.96969896,161.07,161.04,0.04640528]
[1762538718452,0.04519954,161.08,161.04,0.04640528]
[1762538718859,4.96507696,161.07,161.04,0.04640528]
[1762538719160,0.80519954,161.08,161.04,0.04640528]
[1762538719466,5.72460525,161.07,161.04,0.04640528]
[1762538719649,4.96460525,161.06,161.04,0.04640528]
[1762538719852,0.76,161.07,161.04,0.04640528]
[1762538720054,4.96121301,161.06,161.04,0.04640528]
[1762538720249,0.04519954,161.08,161.04,0.04640528]
[1762538720656,4.95717955,161.07,161.04,0.04640528]
[1762538720964,0.04519954,161.08,161.04,3.04640528]
[1762538721464,0.80519954,161.08,161.04,0.04640528]
[1762538721651,5.71428461,161.07,161.04,0.04640528]
[1762538721851,0.76,161.05,160.95,65.0]
[1762538722057,0.71,161.03,160.95,3.0]
[1762538722257,0.71,161.03,160.87,3.0]
[1762538722549,0.71,161.03,160.93,8.5958]
[1762538722750,0.71,161.03,160.93,3.0]
[1762538722953,0.04331537,161.0,160.93,3.0]
[1762538723855,0.75331537,161.0,160.83,3.0]
[1762538724056,0.04367321,160.93,160.83,3.0]
[1762538724364,0.71,161.0,160.83,3.0]
[1762538724660,0.71,161.0,160.88,3.0]
[1762538724860,8.83070904,160.97,160.88,3.0]
[1762538725165,0.76,160.96,160.81,3.0]
[1762538725355,0.76,160.94,160.84,3.0]
[1762538725559,0.76,160.94,160.8,62.0]
[1762538725560,0.03954267,160.9,160.87,3.0]
[1762538725861,0.76,160.98,160.87,3.0]
[1762538726057,8.83070904,161.01,160.92,5.5962]
[1762538726260,0.8,161.02,160.92,3.0]
[1762538726857,0.04686404,160.99,160.95,3.04494954]
[1762538727058,0.04686404,160.99,160.95,0.04494954]
[1762538727258,0.84686404,160.99,160.95,0.04494954]
[1762538727754,0.84686404,160.99,160.82,11.1993]
[1762538727755,0.8,160.97,160.88,5.5974]
[1762538727960,5.74583894,161.03,160.87,3.0]
[1762538727961,0.8,160.95,160.87,3.0]
[1762538728262,0.8,160.95,160.79,86.25096518]
[1762538728263,0.8,160.95,160.85,5.5985]
[1762538728463,0.8,160.92,160.83,3.0]
[1762538728661,5.78958175,160.93,160.83,3.0]
[1762538728863,0.04086242,160.9,160.86,3.04101463]
[1762538729062,5.78958175,160.99,160.86,3.04661621]
[1762538729271,0.8,161.01,160.9,8.5967]
[1762538729457,0.8,161.01,160.9,3.0]
[1762538730061,0.04317474,160.97,160.94,0.04448199]
[1762538730568,0.88317474,160.97,160.94,0.04448199]
[1762538732971,0.04317474,160.97,160.94,0.04448199]
[1762538733159,0.04317474,160.97,160.94,2.93448199]
[1762538733673,0.88317474,160.97,160.94,0.04448199]
[1762538734074,0.04317474,160.97,160.94,0.04448199]
[1762538734265,0.04317474,160.97,160.94,2.93448199]
[1762538734565,0.04317474,160.97,160.94,0.04448199]
[1762538734972,0.04317474,160.97,160.94,2.93448199]
[1762538735164,0.04317474,160.97,160.95,2.89]
[1762538735570,0.84,161.07,160.99,8.4838]
[1762538735769,5.86831401,161.06,160.91,2.89]
[1762538735971,0.88,161.04,160.91,2.89]
[1762538736168,0.88,161.04,160.9,5.78958175]
[1762538736169,0.88,161.04,160.97,8.4844]
[1762538736362,0.88,161.04,160.97,2.89]
[1762538736680,0.88,161.04,160.99,0.04189807]
[1762538736681,6.71519602,161.02,160.99,0.04189807]
[1762538736972,0.88,161.01,160.93,8.4858]
[1762538737670,6.62583894,161.06,160.93,2.89]
[1762538737873,0.04516304,161.01,160.98,0.0461665]
[1762538738171,0.04516304,161.01,160.98,2.9361665]
[1762538738673,0.04516304,161.01,160.99,2.89]
[1762538738877,0.04516304,161.01,160.98,0.0461665]
[1762538739174,0.04516304,161.01,160.98,2.9361665]
[1762538739969,0.04516304,161.01,160.98,0.0461665]
[1762538740571,0.04516304,161.01,160.98,2.9461665]
[1762538740872,0.04516304,161.01,160.98,0.0461665]
[1762538743081,0.92516304,161.01,160.98,0.0461665]
[1762538743485,0.04516304,161.01,160.98,0.0461665]
[1762538744776,5.86840839,161.0,160.98,0.0461665]
[1762538744980,0.88,160.98,160.92,5.03]
[1762538745177,0.88,160.96,160.92,5.03]
[1762538745778,5.74583894,160.99,160.92,7.93]
[1762538745984,0.04691127,160.97,160.94,2.94564362]
[1762538746285,0.04691127,160.97,160.94,0.04564362]
[1762538746484,0.92691127,160.97,160.94,0.04564362]
[1762538746681,0.88,160.96,160.94,0.04564362]
[1762538746886,5.87116497,160.95,160.94,0.04564362]
[1762538747379,0.04691127,160.97,160.94,2.94564362]
[1762538747683,0.04691127,160.97,160.94,0.04564362]
[1762538747981,0.04691127,160.97,160.94,2.94564362]
[1762538748786,5.74583894,161.04,160.96,2.9]
[1762538748977,4.99204028,161.03,160.96,2.9]
[1762538749282,4.99204028,161.02,160.96,2.9]
[1762538749477,4.99204028,161.01,160.96,2.9]
[1762538749784,4.99204028,161.0,160.97,0.03994438]
[1762538750081,0.04145952,161.0,160.97,0.03994438]
[1762538750282,0.04145952,161.0,160.97,2.93994438]
[1762538751884,0.04145952,161.0,160.97,0.03994438]
[1762538752181,0.04145952,161.0,160.97,2.93994438]
[1762538754979,0.04145952,161.0,160.98,5.5941]
[1762538755183,0.04145952,161.0,160.99,2.9]
[1762538755392,5.06410248,161.0,160.99,2.9]
[1762538756283,5.06521641,161.0,160.99,2.9]
[1762538756989,5.06762843,161.05,161.01,2.9]
[1762538757289,7.68747381,161.07,161.01,2.9]
[1762538757491,7.68747381,161.07,161.01,8.4931]
[1762538757682,7.68747381,161.07,161.01,2.9]
[1762538757883,0.04741681,161.06,161.02,2.94010644]
[1762538758186,0.88,161.05,161.02,0.04010644]
[1762538758389,8.56747381,161.05,161.02,0.04010644]
[1762538758689,7.68747381,161.03,160.94,2.9]
[1762538759489,7.68747381,161.04,160.94,2.9]
[1762538759679,0.04608685,161.0,160.98,2.9]
[1762538760295,0.04608685,161.0,160.99,8.4938]
[1762538760485,0.04608685,161.0,160.99,2.9]
[1762538760791,0.04608685,161.0,160.97,2.94365126]
[1762538760989,0.04608685,161.0,160.97,8.53825126]
[1762538761192,0.04608685,161.0,160.97,2.94365126]
[1762538762592,0.04608685,161.0,160.97,0.04365126]
[1762538763195,0.88,160.99,160.92,5.03]
[1762538763502,8.56747381,160.99,160.92,5.03]
[1762538763688,1.48,160.96,160.92,5.03]
[1762538764204,1.48,160.96,160.92,10.6262]
[1762538764396,0.04058934,160.96,160.92,10.67141412]
[1762538765086,0.04058934,160.96,160.92,5.07521412]
[1762538765292,0.04058934,160.96,160.93,2.96]
[1762538765595,0.04058934,160.96,160.92,5.07521412]
[1762538765596,0.04058934,160.96,160.95,2.96]
[1762538766496,0.04058934,160.96,160.93,2.96]
[1762538766801,1.52058934,160.96,160.92,5.07521412]
[1762538766989,11.53121072,161.01,160.93,2.96]
[1762538767189,19.21868454,161.09,160.97,5.78958175]
[1762538767190,11.53121072,161.09,160.97,5.78958175]
[1762538767390,1.48,161.1,161.0,8.74958175]
[1762538767693,1.48,161.1,161.02,8.5527]
[1762538767895,1.48,161.1,161.02,2.96]
[1762538768194,0.04044662,161.08,161.04,0.04477879]
[1762538768400,0.04044662,161.08,161.04,3.00477879]
[1762538769098,5.78958175,161.19,161.07,2.96]
[1762538769099,1.48,161.18,161.07,2.96]
[1762538769289,1.48,161.17,161.07,2.96]
[1762538770093,1.48,161.17,161.08,5.5906]
[1762538770290,1.52242248,161.14,161.1,0.04458895]
[1762538770603,5.5905,161.09,161.03,2.96]
[1762538770796,5.5905,161.09,160.95,13.46]
[1762538770797,1.48,161.08,160.95,13.46]
[1762538771103,1.48,161.08,160.95,16.42]
[1762538771400,1.48,161.08,160.96,2.96]
[1762538771701,0.04522502,161.04,161.0,0.04735756]
[1762538772204,0.04522502,161.04,161.0,3.00735756]
[1762538772398,0.04522502,161.04,161.0,0.04735756]
[1762538772604,0.04522502,161.04,161.0,3.00735756]
[1762538772902,0.04522502,161.04,161.0,0.04735756]
[1762538773606,0.04522502,161.04,161.0,3.00735756]
[1762538774106,0.04522502,161.04,161.0,0.04735756]
[1762538774401,1.48,161.01,161.0,0.04735756]
[1762538774593,0.04522502,161.04,161.0,0.04735756]
[1762538774994,0.04522502,161.04,161.0,3.00735756]
[1762538775504,1.52522502,161.04,161.0,0.04735756]
[1762538776004,1.48,161.03,161.0,0.04735756]
[1762538776504,0.04522502,161.04,161.0,0.04735756]
[1762538776911,0.04522502,161.04,161.0,3.00735756]
[1762538777494,0.04522502,161.04,161.0,0.04735756]
[1762538777700,0.04522502,161.04,161.0,3.00735756]
[1762538777900,1.52522502,161.04,161.0,0.04735756]
[1762538778809,1.48,161.03,161.0,0.04735756]
[1762538779403,0.04522502,161.04,161.0,0.04735756]
[1762538779609,0.04522502,161.04,161.0,3.00735756]
[1762538779907,1.52522502,161.04,161.0,0.04735756]
[1762538780308,0.04522502,161.04,161.0,3.00735756]
[1762538780909,0.04522502,161.04,161.0,0.04735756]
[1762538781305,1.52522502,161.04,161.0,0.04735756]
[1762538781500,1.48,161.03,161.0,0.04735756]
[1762538781910,1.48,161.01,161.0,0.04735756]
[1762538782504,7.11742502,161.04,161.0,0.04735756]
[1762538782708,0.04522502,161.04,161.0,3.00735756]
[1762538782905,0.04522502,161.04,161.0,0.04735756]
[1762538783103,5.63762502,161.04,161.0,0.04735756]
[1762538783303,0.04522502,161.04,161.0,3.00735756]
[1762538783507,0.04522502,161.04,161.0,8.60065756]
[1762538783703,0.04522502,161.04,161.0,0.04735756]
[1762538783913,1.52522502,161.04,161.0,0.04735756]
[1762538784210,5.5927,161.03,161.0,0.04735756]
[1762538784406,1.48,161.02,161.0,0.04735756]
[1762538784912,7.073,161.02,161.0,0.04735756]
[1762538785707,5.593,161.02,161.0,0.04735756]
[1762538785908,5.63762502,161.04,161.0,0.04735756]
[1762538786104,1.52522502,161.04,161.0,0.04735756]
[1762538786410,1.48,161.03,161.0,0.04735756]
[1762538786909,1.48,161.01,161.0,0.04735756]
[1762538787507,5.593,161.02,161.0,0.04735756]
[1762538787712,7.073,161.02,161.0,0.04735756]
[1762538788302,5.63742502,161.04,161.0,0.04735756]
[1762538788507,1.52522502,161.04,161.0,0.04735756]
[1762538788813,1.48,161.02,161.0,0.04735756]
[1762538790009,1.52522502,161.04,161.0,0.04735756]
[1762538790207,4.93384935,161.03,161.0,0.04735756]
[1762538790412,1.48,161.01,160.96,4.35]
[1762538790610,1.48,161.01,160.87,2.96]
[1762538790611,4.93384935,161.0,160.87,2.96]
[1762538790813,98.51381072,161.06,160.87,2.96]
[1762538790814,5.5958,160.94,160.87,2.96]
[1762538791013,1.44,160.98,160.87,2.96]
[1762538791207,1.44,160.96,160.8,2.96]
[1762538791411,5.5976,160.89,160.8,2.96]
[1762538791616,0.04000175,160.9,160.86,0.03712896]
[1762538791917,1.44,160.88,160.86,0.03712896]
[1762538792215,1.48193568,160.9,160.8,2.96]
[1762538792410,20.39976193,160.97,160.85,3.19712896]
[1762538792411,4.93301671,160.89,160.85,3.19712896]
[1762538792723,0.04448545,160.87,160.85,3.19712896]
[1762538792909,0.04740247,160.88,160.85,3.16]
[1762538793217,0.04740247,160.88,160.85,3.19712896]
[1762538793608,0.04740247,160.88,160.85,8.79552896]
[1762538793806,0.04740247,160.88,160.86,3.16]
[1762538794823,0.04740247,160.88,160.87,8.7581]
[1762538795019,1.44,160.94,160.87,3.16]
[1762538795313,5.35377519,160.93,160.82,3.16]
[1762538795512,5.35377519,160.92,160.82,3.16]
[1762538795707,5.35377519,160.91,160.84,3.16]
[1762538796018,0.04680081,160.89,160.86,0.04496345]
[1762538796212,0.04680081,160.89,160.86,3.20496345]
[1762538797013,1.44,160.97,160.87,3.16]
[1762538797318,1.44,161.02,160.93,3.16]
[1762538797511,5.34845362,161.01,160.93,3.16]
[1762538797717,5.34845362,161.0,160.93,3.16]
[1762538797916,0.04209572,160.98,160.95,0.04170902]
[1762538798114,0.04209572,160.98,160.95,3.20170902]
[1762538799819,0.04209572,160.98,160.97,3.16]
[1762538800115,1.44,161.09,160.97,3.16]
[1762538800318,6.82652919,161.08,160.97,65.16]
[1762538800515,10.93782919,161.07,161.0,5.5933]
[1762538800717,5.34652919,161.06,161.0,5.5933]
[1762538801018,5.38655509,161.05,161.01,5.63273743]
[1762538801217,5.38655509,161.05,161.02,3.1]
[1762538801218,0.04719045,161.05,161.02,3.1]
[1762538802116,0.04719045,161.05,161.04,3.1]
[1762538802411,1.48,161.14,161.04,3.1]
[1762538802619,5.59,161.1,160.98,3.1]
[1762538802820,5.34323462,161.09,160.98,3.1]
[1762538803015,5.34323462,161.08,160.98,3.1]
[1762538803323,0.03968215,161.05,161.01,8.73254346]
[1762538803516,0.03968215,161.05,161.02,3.1]
[1762538804114,0.03968215,161.05,161.01,0.03944346]
[1762538804319,0.03968215,161.05,161.02,3.1]
[1762538804721,1.51968215,161.05,161.01,0.03944346]
[1762538804920,0.03968215,161.05,161.01,3.13944346]
[1762538806017,1.48,161.13,161.04,11.96855121]
[1762538806225,11.53121072,161.2,161.04,11.96855121]
[1762538806226,1.48,161.17,161.05,3.1]
[1762538806416,5.33743015,161.16,161.05,3.1]
[1762538806719,5.33743015,161.15,161.07,3.1]
[1762538806920,5.33743015,161.14,161.07,3.1]
[1762538807126,0.04580624,161.12,161.09,3.14034043]
[1762538807427,0.04335039,161.12,161.1,5.5897]
[1762538807618,0.04335039,161.12,161.1,3.1]
[1762538808121,0.04335039,161.12,161.11,8.6897]
[1762538808315,7.69542068,161.22,161.11,3.1]
[1762538808520,5.33107923,161.21,161.11,3.1]
[1762538808722,5.33107923,161.2,161.13,5.5887]
[1762538809020,5.33107923,161.19,161.13,8.6887]
[1762538809224,5.37693693,161.18,161.14,3.14667679]
[1762538809426,5.37693693,161.18,161.14,3.1]
[1762538809427,0.0458577,161.18,161.14,3.1]
[1762538809625,0.0458577,161.18,161.14,8.73282493]
[1762538809818,0.0458577,161.18,161.15,3.1]
[1762538810220,0.0458577,161.18,161.17,3.1]
[1762538810822,0.0458577,161.18,161.15,3.1]
[1762538811333,0.0458577,161.18,161.17,3.1]
[1762538811626,7.69542068,161.28,161.17,3.1]
[1762538811823,5.31795105,161.27,161.17,3.1]
[1762538812127,1.48,161.29,161.19,3.1]
[1762538812128,5.31795105,161.26,161.19,3.1]
[1762538812335,5.31795105,161.25,161.19,3.1]
[1762538812519,5.31795105,161.24,161.19,3.1]
[1762538812824,5.35771293,161.23,161.2,0.04182302]
[1762538813020,0.03976188,161.23,161.2,3.14182302]
[1762538813220,0.03976188,161.23,161.22,3.1]
[1762538814123,0.03976188,161.23,161.2,0.04182302]
[1762538814426,5.30325881,161.22,161.2,0.04182302]
[1762538814627,1.51976188,161.23,161.2,0.04182302]
[1762538814829,5.3035748,161.22,161.2,0.04182302]
[1762538815026,1.51976188,161.23,161.2,0.04182302]
[1762538815221,5.30347161,161.22,161.2,0.04182302]
[1762538815422,1.51976188,161.23,161.2,0.04182302]
[1762538815624,6.78072612,161.22,161.2,0.04182302]
[1762538815827,6.78072612,161.21,161.2,0.04182302]
[1762538816135,1.48,161.2,161.12,3.1]
[1762538816333,5.30072612,161.19,161.12,3.1]
[1762538816628,1.48,161.24,161.12,3.1]
[1762538816830,5.5859,161.22,161.13,3.1]
[1762538817022,1.5223078,161.2,161.16,0.04243447]
[1762538817220,5.29945689,161.19,161.16,0.04243447]
[1762538817419,5.29945689,161.18,161.16,0.04243447]
[1762538817619,0.0423078,161.2,161.16,3.14243447]
[1762538817829,6.7776785,161.19,161.16,0.04243447]
[1762538818133,5.2976785,161.18,161.16,0.04243447]
[1762538818330,5.2976785,161.17,161.16,0.04243447]
[1762538818637,5.29636622,161.17,161.16,0.04243447]
[1762538819028,1.5223078,161.2,161.16,0.04243447]
[1762538819233,5.29619632,161.19,161.16,0.04243447]
[1762538819428,5.29619632,161.18,161.16,0.04243447]
[1762538819724,1.5223078,161.2,161.16,0.04243447]
[1762538819928,5.29418559,161.19,161.16,0.04243447]
[1762538820137,0.0423078,161.2,161.16,0.04243447]
[1762538820435,5.29317308,161.19,161.17,3.1]
[1762538820630,0.0423078,161.2,161.17,3.1]
[1762538820832,5.29302512,161.19,161.16,0.04243447]
[1762538821035,5.29319098,161.18,161.16,0.04243447]
[1762538821237,1.5223078,161.2,161.16,0.04243447]
[1762538821532,1.48,161.18,161.16,0.04243447]
[1762538821726,5.29177343,161.19,161.16,0.04243447]
[1762538821727,6.77177343,161.17,161.16,0.04243447]
[1762538821926,0.0423078,161.2,161.16,0.04243447]
[1762538822241,0.0423078,161.2,161.17,2.98]
[1762538822938,5.71564012,161.27,161.19,2.98]
[1762538823129,1.47,161.25,161.15,2.98]
[1762538823332,11.00398522,161.26,161.15,2.98]
[1762538823333,1.47,161.23,161.15,2.98]
[1762538823530,5.2883451,161.22,161.15,2.98]
[1762538823735,7.18564012,161.27,161.15,2.98]
[1762538823929,0.04360405,161.23,161.19,0.03990296]
[1762538824129,0.04360405,161.23,161.19,3.01990296]
[1762538824732,0.04360405,161.23,161.19,0.03990296]
[1762538824733,5.28337897,161.22,161.19,0.03990296]
[1762538824932,0.04360405,161.23,161.19,3.01990296]
[1762538825432,1.51360405,161.23,161.19,0.03990296]
[1762538825837,1.51360405,161.23,161.19,3.01990296]
[1762538825838,0.04360405,161.23,161.19,3.01990296]
[1762538826143,1.51360405,161.23,161.19,0.03990296]
[1762538826742,0.04360405,161.23,161.19,3.01990296]
[1762538827540,0.04360405,161.23,161.21,8.5659]
[1762538827938,0.04360405,161.23,161.19,5.62660296]
[1762538828133,0.04360405,161.23,161.19,3.01990296]
[1762538828438,1.51360405,161.23,161.19,0.03990296]
[1762538828641,0.04360405,161.23,161.19,3.01990296]
[1762538829539,0.04360405,161.23,161.19,8.60660296]
[1762538829739,0.04360405,161.23,161.2,2.98]
[1762538830041,1.47,161.32,161.2,2.98]
[1762538831130,0.04070026,161.28,161.26,8.5643]
[1762538831334,0.04070026,161.28,161.25,0.04697155]
[1762538831739,1.51070026,161.28,161.25,0.04697155]
[1762538831938,1.51070026,161.28,161.14,7.33]
[1762538831939,1.47,161.26,161.14,7.33]
[1762538832146,7.0546,161.26,161.17,5.5874]
[1762538832440,4.96559825,161.25,161.15,2.98]
[1762538832637,7.0546,161.26,161.15,2.98]
[1762538832946,0.04654967,161.22,161.19,0.03965537]
[1762538833247,0.04654967,161.22,161.19,3.01965537]
[1762538833433,0.04654967,161.22,161.21,2.98]
[1762538833632,0.04654967,161.22,161.2,5.5864]
[1762538833839,0.04654967,161.22,161.19,3.01965537]
[1762538834039,1.51654967,161.22,161.19,0.03965537]
[1762538834253,0.04654967,161.22,161.19,0.03965537]
[1762538834856,1.51654967,161.22,161.19,0.03965537]
[1762538835559,1.47,161.2,161.14,4.35]
[1762538835750,1.47,161.18,161.14,4.35]
[1762538835947,1.47,161.15,161.14,4.35]
[1762538836148,1.47,161.15,161.08,4.46]
[1762538836545,1.51772628,161.13,161.1,0.04537739]
[1762538836750,5.5895,161.12,161.1,0.04537739]
[1762538836950,7.0595,161.12,161.1,0.04537739]
[1762538837148,1.47,161.11,161.1,0.04537739]
[1762538838061,6.45153338,161.11,161.1,0.04537739]
[1762538838254,6.45153338,161.11,161.08,4.46]
[1762538838558,12.04153338,161.1,161.08,4.46]
[1762538838758,4.98734922,161.09,161.02,2.98]
[1762538838951,4.98763985,161.08,161.02,2.98]
[1762538839146,1.47,161.1,161.02,2.98]
[1762538839359,0.04194662,161.08,161.04,0.04326479]
[1762538839952,4.99358684,161.07,161.04,3.02326479]
[1762538840151,0.04194662,161.08,161.04,3.02326479]
[1762538840358,4.99939733,161.07,161.04,3.02326479]
[1762538840554,0.04194662,161.08,161.04,3.02326479]
[1762538840755,4.99939733,161.07,161.04,3.02326479]
[1762538840952,0.04194662,161.08,161.04,3.02326479]
[1762538842252,5.01277455,161.07,161.04,3.02326479]
[1762538842455,0.04194662,161.08,161.06,2.98]
[1762538842757,5.71564012,161.15,161.06,2.98]
[1762538842955,5.01166343,161.14,161.06,2.98]
[1762538843260,5.01166343,161.13,161.1,8.5699]
[1762538843455,5.01166343,161.12,161.1,8.5699]
[1762538843655,5.01659438,161.11,161.1,2.98]
[1762538843957,5.01659438,161.11,161.09,0.03954135]
[1762538844153,0.04036486,161.13,161.09,3.01954135]
[1762538844359,5.02190834,161.12,161.09,3.01954135]
[1762538844660,5.02190834,161.11,161.09,3.01954135]
[1762538844957,0.04036486,161.13,161.09,8.60964135]
[1762538845262,5.02181679,161.12,161.09,3.01954135]
[1762538845459,0.04036486,161.13,161.1,2.98]
[1762538845664,5.02461066,161.12,161.1,2.98]
[1762538845855,5.02461066,161.11,161.09,0.03954135]
[1762538846062,0.04036486,161.13,161.09,0.03954135]
[1762538846262,1.47,161.11,161.09,0.03954135]
[1762538846456,5.02483817,161.1,161.09,0.03954135]
[1762538847263,10.74047829,161.1,161.09,0.03954135]
[1762538847461,5.02483817,161.1,161.09,0.03954135]
[1762538849166,6.49483817,161.1,161.09,0.03954135]
[1762538849960,0.04036486,161.13,161.09,3.01954135]
[1762538850161,4.84333263,161.12,161.09,3.01954135]
[1762538850466,1.47,161.1,161.09,0.03954135]
[1762538850672,4.84333263,161.1,161.09,0.03954135]
[1762538851368,6.31333263,161.1,161.09,0.03954135]
[1762538851867,6.31333263,161.1,161.01,2.98]
[1762538852071,7.0602,161.1,161.03,5.5924]
[1762538852668,1.47,161.1,161.04,5.5919]
[1762538852868,0.03969631,161.09,161.05,0.04211713]
[1762538853169,1.50969631,161.09,161.05,0.04211713]
[1762538854073,1.47,161.07,161.05,0.04211713]
[1762538854475,1.50969631,161.09,161.05,0.04211713]
[1762538854875,0.03969631,161.09,161.05,0.04211713]
[1762538855173,0.03969631,161.09,161.06,5.5911]
[1762538855474,0.03969631,161.09,161.06,3.15]
[1762538855670,1.47,161.17,161.06,3.15]
[1762538855975,1.47,161.22,161.09,3.15]
[1762538856467,7.0567,161.2,161.1,65.15]
[1762538856666,0.04720752,161.17,161.13,0.03943237]
[1762538857871,0.04720752,161.17,161.14,3.15]
[1762538858666,0.04720752,161.17,161.16,3.15]
[1762538858979,0.04720752,161.17,161.13,0.03943237]
[1762538859174,0.04720752,161.17,161.13,3.18943237]
[1762538860964,0.04720752,161.17,161.15,5.5881]
[1762538861171,0.04720752,161.17,161.16,2.89]
[1762538861476,1.48,161.26,161.16,2.89]
[1762538862472,0.04065967,161.23,161.19,0.04634913]
[1762538862979,0.04065967,161.23,161.2,2.89]
[1762538864073,0.04065967,161.23,161.21,5.586]
[1762538864682,0.04065967,161.23,161.22,2.89]
[1762538864878,1.48,161.31,161.24,5.5849]
[1762538865070,7.063,161.31,161.24,5.5849]
[1762538865974,0.03948659,161.29,161.26,0.04633891]
[1762538866973,1.51948659,161.29,161.26,0.04633891]
[1762538867680,1.48,161.27,161.18,2.89]
[1762538868777,0.04538619,161.24,161.21,0.03955489]
[1762538870480,1.52538619,161.24,161.21,0.03955489]
[1762538870682,1.52538619,161.24,161.14,2.89]
[1762538870881,1.48,161.24,161.14,2.89]
[1762538871183,1.48,161.24,161.15,5.5881]
[1762538871786,0.04220288,161.21,161.18,0.04343713]
[1762538872387,0.04220288,161.21,161.18,2.93343713]
[1762538873682,5.5839,161.28,161.19,2.89]
[1762538874084,1.48,161.29,161.21,5.5861]
[1762538874389,5.5843,161.27,161.21,5.5861]
[1762538874585,0.03962145,161.26,161.22,2.93387633]
[1762538875390,0.03962145,161.26,161.22,8.51957633]
[1762538876178,0.03962145,161.26,161.23,2.89]
[1762538876580,0.03962145,161.26,161.24,5.585]
[1762538876785,0.03962145,161.26,161.25,2.89]
[1762538878183,5.5822,161.33,161.27,5.584]
[1762538878984,5.5826,161.32,161.25,8.4747]
[1762538879184,0.04733398,161.3,161.27,2.93142806]
[1762538881082,0.04733398,161.3,161.29,2.89]
[1762538881387,1.48,161.43,161.3,2.89]
[1762538881581,1.48,161.43,161.31,2.89]
[1762538881878,5.5791,161.42,161.35,5.5812]
[1762538882082,1.48,161.43,161.35,5.5812]
[1762538882282,1.47,161.4,161.37,0.04380146]
[1762538882584,1.47,161.38,161.27,5.78252397]
[1762538882784,1.47,161.38,161.27,3.12]
[1762538883181,7.0505,161.38,161.3,5.5829]
[1762538883393,7.0505,161.38,161.27,3.12]
[1762538883694,5.5798,161.4,161.34,3.12]
[1762538883994,0.04005675,161.39,161.35,3.15983093]
[1762538884290,0.04041475,161.39,161.35,3.16468892]
[1762538884680,0.04041475,161.39,161.35,0.04468892]
[1762538884886,0.04041475,161.39,161.35,3.16468892]
[1762538885796,0.04041475,161.39,161.36,3.12]
[1762538886890,0.04041475,161.39,161.37,8.7004]
[1762538887191,0.04041475,161.39,161.38,3.12]
[1762538887588,1.48370043,161.48,161.41,3.12]
[1762538888089,1.48370043,161.48,161.44,3.12]
[1762538888695,1.52652003,161.48,161.47,3.12]
[1762538889299,5.5739,161.57,161.49,8.6962]
[1762538889494,1.47,161.59,161.49,3.12]
[1762538889694,1.47,161.59,161.5,3.12]
[1762538889890,7.69542068,161.68,161.54,3.12]
[1762538889891,4.69672732,161.64,161.54,3.12]
[1762538890094,6.16672732,161.66,161.54,3.12]
[1762538890292,1.47,161.66,161.55,3.12]
[1762538890502,0.04411767,161.61,161.57,3.16666917]
[1762538890901,0.04411767,161.61,161.59,3.12]
[1762538892002,0.04411767,161.61,161.6,3.12]
[1762538893303,1.47,161.7,161.6,3.12]